fUST/lending_fUST_20250514
["ID","MTS","AMOUNT","RATE_DAILY","PERIOD"]
[360981900,1747179430382,-18766.12803638,0.00025,120]
[360981901,1747179430423,-499.10694369,0.00025,120]
[360981902,1747179430468,-2508.63,0.00025,30]
[360981903,1747179430511,-310.0,0.00025,120]
[360981904,1747179430554,-160.0,0.00025,30]
[360981905,1747179430596,-160.0,0.00025,30]
[360981906,1747179430638,-212.19047112,0.00025,120]
[360981907,1747179430681,-160.0,0.00025,30]
[360981908,1747179430724,-160.0,0.00025,30]
[360981909,1747179430765,-422.24190663,0.00025,30]
[360981910,1747179430806,-160.0,0.00025,30]
[360981911,1747179430850,-200.0,0.00025143,120]
[360981912,1747179430892,-1000.0,0.00025205,120]
[360981913,1747179430932,-200.0,0.00025279,120]
[360981914,1747179430975,-1000.0,0.00025479,120]
[360981915,1747179431016,-1000.0,0.00025753,120]
[360981916,1747179431074,-20000.0,0.00026,30]
[360981917,1747179431121,-500.0,0.00026,120]
[360981918,1747179431164,-1660.89632677,0.00026,30]
[360981919,1747179431211,-1000.0,0.00026027,120]
[360981920,1747179431262,-173.5,0.000261,31]
[360981921,1747179431323,-173.5,0.000261,31]
[360981922,1747179431375,-173.5,0.000261,31]
[360981923,1747179431427,-173.5,0.000261,31]
[360981924,1747179431481,-173.5,0.000261,31]
[360981925,1747179431531,-173.5,0.000261,31]
[360981926,1747179431578,-173.5,0.000261,31]
[360981927,1747179431628,-173.5,0.000261,31]
[360981928,1747179431678,-173.5,0.000261,31]
[360981929,1747179431730,-173.5,0.000261,31]
[360981930,1747179431775,-1333.0,0.00026137,120]
[360981931,1747179431818,-200.0,0.00026266,120]
[360981932,1747179431859,-1000.0,0.00026301,120]
[360981933,1747179431901,-1000.0,0.00026575,120]
[360981934,1747179431949,-173.5,0.000266,31]
[360981935,1747179431996,-173.5,0.000266,31]
[360981936,1747179432047,-173.5,0.000266,31]
[360981937,1747179432205,-173.5,0.000266,31]
[360981938,1747179432257,-173.5,0.000266,31]
[360981939,1747179432308,-173.5,0.000266,31]
[360981940,1747179432358,-173.5,0.000266,31]
[360981941,1747179432411,-173.5,0.000266,31]
[360981942,1747179432466,-173.5,0.000266,31]
[360981943,1747179432516,-173.5,0.000266,31]
[360981944,1747179432567,-173.5,0.000266,31]
[360981945,1747179432625,-173.5,0.000266,31]
[360981946,1747179432675,-200.0,0.00026644,120]
[360981947,1747179432720,-200.0,0.00026724,120]
[360981948,1747179432762,-1000.0,0.00026849,120]
[360981949,1747179432803,-200.0,0.0002685,120]
[360981950,1747179432845,-500.0,0.00027,120]
[360981951,1747179432886,-2196.99653781,0.00027,120]
[360981952,1747179432925,-500.0,0.00027,30]
[360981953,1747179432969,-1000.0,0.00027123,120]
[360981954,1747179433009,-1000.0,0.00027397,120]
[360981955,1747179433055,-400.0,0.00027397,60]
[360981956,1747179433094,-200.0,0.00027397,30]
[360981957,1747179433135,-200.0,0.00027397,30]
[360981958,1747179433177,-200.0,0.00027397,30]
[360981959,1747179433217,-200.0,0.00027397,30]
[360981960,1747179433260,-200.0,0.00027397,30]
[360981961,1747179433301,-5722.351273,0.00027397,120]
[360981962,1747179433341,-821.88638881,0.000275,30]
[360981963,1747179433385,-2000.0,0.00027671,120]
[360981964,1747179433426,-1084.20649582,0.000278,120]
[360981965,1747179433467,-2000.0,0.00027945,120]
[360981966,1747179433506,-3612.0137528,0.0002799,120]
[360981967,1747179433547,-547.0,0.00028,120]
[360981968,1747179433593,-20000.0,0.00028,30]
[360981969,1747179433639,-500.0,0.00028,30]
[360981970,1747179433681,-1603.61,0.00028078,30]
[360981971,1747179433723,-200.0,0.00028113,120]
[360981972,1747179433763,-363.0527802,0.00028145,30]
[360981973,1747179433805,-363.0527802,0.00028145,30]
[360981974,1747179433845,-363.0527802,0.00028145,30]
[360981975,1747179433887,-161.7310529,0.00028145,30]
[360981976,1747179433930,-2000.0,0.00028219,120]
[360981977,1747179433969,-200.0,0.00028268,120]
[360981978,1747179434007,-1603.61,0.00028478,30]
[360981979,1747179434044,-2000.0,0.00028493,120]
[360981980,1747179434096,-200.0,0.000287,120]
[360981981,1747179434136,-438.0,0.00028731,45]
[360981982,1747179434176,-2000.0,0.00028767,120]
[360981983,1747179434216,-500.0,0.00029,120]
[360981984,1747179434256,-500.0,0.00029,30]
[360981985,1747179434295,-2000.0,0.00029041,120]
[360981986,1747179434335,-2000.0,0.00029315,120]
[360981987,1747179434374,-229.9747133,0.00029378,30]
[360981988,1747179434412,-1427.84483487,0.000295,38]
[360981989,1747179434455,-2000.0,0.00029589,120]
[360981990,1747179434498,-734.14577,0.000297,120]
[360981991,1747179434541,-389.47956,0.000297,120]
[360981992,1747179434586,-200.0,0.000297,120]
[360981993,1747179434629,-223.4719,0.000297,120]
[360981994,1747179434675,-2000.0,0.00029863,120]
[360981995,1747179434718,-1400.0,0.000299,30]
[360981996,1747179434763,-294503.93550983,0.000299,30]
[360981997,1747179434805,-12321.5691652,0.0003,120]
[360981998,1747179434846,-14719.57532651,0.0003,120]
[360981999,1747179434888,-5417.0016533,0.0003,120]
[360982000,1747179434930,-800.0,0.0003,120]
[360982001,1747179434975,-10055.2148,0.0003,30]
[360982002,1747179435019,-57308.22487951,0.0003,60]
[360982003,1747179435062,-2659.82905598,0.0003,60]
[360982004,1747179435103,-203.02,0.0003,30]
[360982005,1747179435143,-4000.0,0.0003,120]
[360982006,1747179435184,-1817.95672366,0.0003,30]
[360982007,1747179435224,-20000.0,0.0003,120]
[360982008,1747179435264,-385.0,0.0003,30]
[360982009,1747179435307,-6692.75286748,0.0003,30]
[360982010,1747179435351,-1000.0,0.0003,120]
[360982011,1747179435395,-500.0,0.0003,30]
[360982012,1747179435439,-33668.7150057,0.0003,30]
[360982013,1747179435483,-14400.8,0.0003,30]
[360982014,1747179435527,-172.32877219,0.0003,60]
[360982015,1747179435568,-13801.0,0.0003,120]
[360982016,1747179435610,-881.9302087,0.0003,60]
[360982017,1747179435655,-3494.42573011,0.0003,120]
[360982018,1747179435699,-12625.42653527,0.0003,120]
[360982019,1747179435741,-12625.42653527,0.0003,120]
[360982020,1747179435782,-212.19047112,0.0003,120]
[360982021,1747179435822,-314.27581824,0.0003,120]
[360982022,1747179435864,-314.27581824,0.0003,120]
[360982023,1747179435904,-400.0,0.00030137,60]
[360982024,1747179435946,-2000.0,0.00030137,120]
[360982025,1747179435986,-425.5536528,0.00030247,30]
[360982026,1747179436037,-200.0,0.000303,120]
[360982027,1747179436078,-200.0,0.00030364,120]
[360982028,1747179436124,-5223.23906947,0.00031,120]
[360982029,1747179436165,-500.0,0.00031,30]
[360982030,1747179436204,-1000.0,0.00031,120]
[360982031,1747179436246,-160.0,0.00031,120]
[360982032,1747179436450,-160.0,0.00031,120]
[360982033,1747179436510,-160.0,0.00031,120]
[360982034,1747179436552,-160.0,0.00031,120]
[360982035,1747179436596,-422.24190663,0.00031,120]
[360982036,1747179436637,-160.0,0.00031,120]
[360982037,1747179436680,-200.0,0.00031053,120]
[360982038,1747179436721,-200.0,0.00031061,120]
[360982039,1747179436762,-200.0,0.0003123,120]
[360982040,1747179436804,-200.0,0.00031348,120]
[360982041,1747179436842,-734.14577,0.000314,120]
[360982042,1747179436882,-200.0,0.000314,120]
[360982043,1747179436920,-200.0,0.000319,120]
[360982044,1747179436961,-5722.351273,0.00031963,120]
[360982045,1747179437001,-1000.0,0.00032,120]
[360982046,1747179437040,-2730.59,0.00032,120]
[360982047,1747179437080,-7957.28107432,0.00032,30]
[360982048,1747179437121,-10000.0,0.00032,120]
[360982049,1747179437162,-1000.0,0.00032,120]
[360982050,1747179437201,-500.0,0.00032,30]
[360982051,1747179437239,-2200.0,0.00032,120]
[360982052,1747179437279,-201.51652434,0.00032,90]
[360982053,1747179437319,-878.20503576,0.00032055,30]
[360982054,1747179437360,-200.0,0.00032317,120]
[360982055,1747179437404,-269.0212561,0.00032439,30]
[360982056,1747179437444,-200.0,0.0003257,33]
[360982057,1747179437487,-28214.0214984,0.000328,120]
[360982058,1747179437531,-500.0,0.00032876,120]
[360982059,1747179437574,-500.0,0.00032876,120]
[360982060,1747179437619,-500.0,0.00032876,120]
[360982061,1747179437662,-500.0,0.00032876,120]
[360982062,1747179437704,-500.0,0.00032876,120]
[360982063,1747179437746,-500.0,0.00032876,120]
[360982064,1747179437788,-500.0,0.00032876,120]
[360982065,1747179437826,-500.0,0.00032876,120]
[360982066,1747179437868,-500.0,0.00032876,120]
[360982067,1747179437908,-500.0,0.00032876,120]
[360982068,1747179437946,-500.0,0.00032876,120]
[360982069,1747179437986,-500.0,0.00032876,120]
[360982070,1747179438026,-500.0,0.00032876,120]
[360982071,1747179438067,-500.0,0.00032876,120]
[360982072,1747179438107,-500.0,0.00032876,120]
[360982073,1747179438150,-500.0,0.00032876,120]
[360982074,1747179438191,-500.0,0.00032876,120]
[360982075,1747179438231,-500.0,0.00032876,120]
[360982076,1747179438272,-500.0,0.00032876,120]
[360982077,1747179438315,-500.0,0.00032876,120]
[360982078,1747179438354,-500.0,0.00032876,120]
[360982079,1747179438396,-218.18142132,0.00032876,120]
[360982080,1747179438438,-400.0,0.00032877,60]
[360982081,1747179438482,-242.6636298,0.00032877,120]
[360982082,1747179438524,-279.0,0.00032877,120]
[360982083,1747179438566,-300.0,0.00032877,120]
[360982084,1747179438609,-1603.61,0.00032878,44]
[360982085,1747179438653,-1514.88679724,0.000329,120]
[360982086,1747179438694,-1603.61,0.00032978,63]
[360982087,1747179438736,-10000.0,0.00033,30]
[360982088,1747179438780,-500.0,0.00033,30]
[360982089,1747179438822,-1603.61,0.00033078,61]
[360982090,1747179438865,-734.14577,0.000331,120]
[360982091,1747179438908,-256.29987,0.000331,120]
[360982092,1747179438951,-1603.61,0.00033178,75]
[360982093,1747179438990,-1603.61,0.00033278,39]
[360982094,1747179439030,-1603.61,0.00033378,59]
[360982095,1747179439071,-1603.61,0.00033478,89]
[360982096,1747179439111,-353.05769,0.000335,120]
[360982097,1747179439156,-1603.61,0.00033578,87]
[360982098,1747179439200,-1603.61,0.00033678,65]
[360982099,1747179439243,-1603.61,0.00033778,62]
[360982100,1747179439286,-1603.61,0.00033878,87]
[360982101,1747179439328,-1603.61,0.00033978,65]
[360982102,1747179439373,-1000.0,0.00034,120]
[360982103,1747179439417,-10000.0,0.00034,120]
[360982104,1747179439464,-1000.0,0.00034,120]
[360982105,1747179439511,-1603.61,0.00034078,42]
[360982106,1747179439556,-200.0,0.000341,37]
[360982107,1747179439599,-1603.61,0.00034178,60]
[360982108,1747179439645,-1603.61,0.00034278,35]
[360982109,1747179439692,-1603.61,0.00034378,76]
[360982110,1747179439737,-1603.61,0.00034478,50]
[360982111,1747179439782,-1300.0,0.00034522,60]
[360982112,1747179439826,-1603.61,0.00034578,87]
[360982113,1747179439868,-1603.61,0.00034678,83]
[360982114,1747179439911,-1603.61,0.00034778,68]
[360982115,1747179439953,-734.14577,0.000348,120]
[360982116,1747179440216,-200.0,0.00034839,30]
[360982117,1747179440261,-3574.83025238,0.0003484,120]
[360982118,1747179440308,-1603.61,0.00034878,74]
[360982119,1747179440351,-500.0,0.000349,30]
[360982120,1747179440395,-1603.61,0.00034978,39]
[360982121,1747179440435,-500.0,0.00035,120]
[360982122,1747179440481,-678.27823394,0.00035,120]
[360982123,1747179440526,-210.66622427,0.00035,30]
[360982124,1747179440567,-650.0,0.00035,120]
[360982125,1747179440614,-2000.0,0.00035,120]
[360982126,1747179440659,-2000.0,0.00035,120]
[360982127,1747179440701,-2000.0,0.00035,120]
[360982128,1747179440743,-2000.0,0.00035,120]
[360982129,1747179440786,-150.0,0.00035,69]
[360982130,1747179440827,-2000.0,0.00035,120]
[360982131,1747179440866,-2000.0,0.00035,120]
[360982132,1747179440907,-200.0,0.00035,120]
[360982133,1747179440948,-4000.0,0.00035,90]
[360982134,1747179440990,-1000.0,0.00035,120]
[360982135,1747179441031,-19000.0,0.00035,120]
[360982136,1747179441072,-500.0,0.00035,120]
[360982137,1747179441115,-234.0,0.00035,120]
[360982138,1747179441158,-219.13383751,0.00035,30]
[360982139,1747179441198,-311.0,0.00035,30]
[360982140,1747179441240,-942.15550147,0.00035014,90]
[360982141,1747179441286,-151.0,0.00035017,30]
[360982142,1747179441330,-1603.61,0.00035078,53]
[360982143,1747179441379,-1603.61,0.00035178,45]
[360982144,1747179441423,-1603.61,0.00035278,72]
[360982145,1747179441469,-1603.61,0.00035378,39]
[360982146,1747179441516,-1603.61,0.00035478,57]
[360982147,1747179441557,-1603.61,0.00035578,50]
[360982148,1747179441598,-453.60886305,0.00035616,60]
[360982149,1747179446112,160.0,0.00025,30]
[360982150,1747179447034,160.0,0.00031,120]
[360982151,1747179460888,160.0,0.0003,30]
[360982152,1747179461295,160.0,0.00031,120]
[360982153,1747179617655,-5000.0,0.00012441,7]
[360982154,1747179617677,-165.38893651,0.00012557,2]
[360982155,1747179617700,-300.0,0.00012693,2]
[360982156,1747179617725,-500.0,0.00012694,2]
[360982157,1747179617749,-500.0,0.00012694,2]
[360982158,1747179617773,-329.90902663,0.00012694,2]
[360982159,1747179617798,-586.05105707,0.00012694,2]
[360982160,1747179617827,-500.0,0.00012694,2]
[360982161,1747179617848,-500.0,0.00012694,2]
[360982162,1747179617872,-500.0,0.00012694,2]
[360982163,1747179617896,-513.0072748,0.00012694,2]
[360982164,1747179617919,-13700.91863089,0.00012696,2]
[360982165,1747179617941,-5803.0250741,0.00012696,2]
[360982167,1747179770400,10552.98072223,0.0002,120]
[360982169,1747180033115,-250.0,0.00011616,2]
[360982170,1747180033139,-171.63991698,0.00012347,2]
[360982171,1747180042133,-3077.98018491,0.00012347,2]
[360982172,1747180048164,-1750.37989811,0.00012347,2]
[360982173,1747180048188,-223.66747498,0.00012472,2]
[360982174,1747180048211,-300.0,0.00012472,2]
[360982175,1747180048234,-300.0,0.00012472,2]
[360982176,1747180048256,-500.0,0.00012473,2]
[360982177,1747180048279,-500.0,0.00012473,2]
[360982178,1747180048301,-515.73978745,0.00012473,2]
[360982179,1747180048323,-500.0,0.00012473,2]
[360982180,1747180048346,-558.74724067,0.00012473,2]
[360982181,1747180048369,-308.95344147,0.00012474,2]
[360982372,1747180237255,-5000.0,0.00012349,2]
[360982373,1747180237265,-409.6600928,0.00012408,2]
[360982374,1747180237275,-300.0,0.00012473,2]
[360982376,1747180237284,-24591.04655853,0.00012474,2]
[360982378,1747180237294,-4196.9749259,0.00012696,2]
[360982380,1747180237304,-151.0,0.00012732,2]
[360982381,1747180237313,-332.4914801,0.0001282,2]
[360982382,1747180237323,-1000.00000001,0.00013461,2]
[360982383,1747180237334,-263.19304505,0.00013598,2]
[360982384,1747180237345,-652.61296533,0.00013616,2]
[360982385,1747180237354,-420.0,0.00013686,2]
[360982386,1747180237364,-400.0,0.00013698,2]
[360982387,1747180237374,-206.74999979,0.00013698,2]
[360982388,1747180237384,-506.10991377,0.00013698,2]
[360982389,1747180237673,-501.54518286,0.00013698,2]
[360982390,1747180237685,-302.70407163,0.00013698,2]
[360982391,1747180237696,-400.0,0.00013698,2]
[360982392,1747180237706,-155.06169157,0.00013698,2]
[360982393,1747180237717,-511.03529682,0.00013698,2]
[360982394,1747180237727,-500.0,0.00013698,2]
[360982395,1747180237738,-400.0,0.00013698,2]
[360982396,1747180237748,-400.0,0.00013698,2]
[360982397,1747180237757,-457.24227385,0.00013698,2]
[360982398,1747180237768,-400.0,0.00013698,2]
[360982399,1747180237779,-400.0,0.00013698,2]
[360982400,1747180237789,-413.97815311,0.00013698,2]
[360982401,1747180237801,-250.09085467,0.00013698,2]
[360982402,1747180237812,-223.66461557,0.00013698,2]
[360982403,1747180237823,-400.0,0.00013698,2]
[360982404,1747180237834,-402.27004007,0.00013698,2]
[360982405,1747180237845,-408.67901371,0.00013698,2]
[360982406,1747180237855,-412.96032534,0.00013698,2]
[360982407,1747180237865,-400.0,0.00013698,2]
[360982408,1747180237875,-400.0,0.00013698,2]
[360982409,1747180237886,-400.0,0.00013698,2]
[360982410,1747180237896,-400.0,0.00013698,2]
[360982413,1747180237906,-249.82472795,0.00013698,2]
[360982414,1747180237920,-400.0,0.00013698,2]
[360982415,1747180237931,-408.4086763,0.00013698,2]
[360982416,1747180237941,-400.0,0.00013698,2]
[360982417,1747180237951,-400.0,0.00013698,2]
[360982418,1747180237961,-157.88394426,0.00013698,2]
[360982419,1747180237972,-400.0,0.00013698,2]
[360982420,1747180237982,-506.06089301,0.00013698,2]
[360982421,1747180237992,-400.0,0.00013698,2]
[360982422,1747180238003,-400.0,0.00013698,2]
[360982423,1747180238013,-400.0,0.00013698,2]
[360982424,1747180238024,-400.0,0.00013698,2]
[360982425,1747180238035,-268.93500822,0.00013698,2]
[360982426,1747180238044,-500.0,0.00013698,2]
[360982427,1747180238054,-400.0,0.00013698,2]
[360982428,1747180238064,-400.0,0.00013698,2]
[360982429,1747180238075,-400.0,0.00013698,2]
[360982430,1747180238084,-400.0,0.00013698,2]
[360982431,1747180238094,-400.0,0.00013698,2]
[360982432,1747180238104,-400.0,0.00013698,2]
[360982433,1747180238113,-400.0,0.00013698,2]
[360982434,1747180238124,-400.0,0.00013698,2]
[360982435,1747180238135,-400.0,0.00013698,2]
[360982436,1747180238145,-400.0,0.00013698,2]
[360982437,1747180238154,-400.0,0.00013698,2]
[360982438,1747180238164,-400.0,0.00013698,2]
[360982439,1747180238175,-260.31970175,0.00013698,2]
[360982440,1747180238185,-655.54,0.00013698,2]
[360982441,1747180238195,-400.0,0.00013698,2]
[360982442,1747180238205,-562.77,0.00013698,2]
[360982443,1747180238215,-400.0,0.00013698,2]
[360982444,1747180238224,-400.0,0.00013698,2]
[360982445,1747180238235,-400.0,0.00013698,2]
[360982446,1747180238245,-160.0,0.00013698,2]
[360982447,1747180238256,-400.0,0.00013698,2]
[360982448,1747180238266,-792.18,0.00013698,2]
[360982449,1747180238275,-400.0,0.00013698,2]
[360982450,1747180238285,-400.0,0.00013698,2]
[360982451,1747180238295,-400.0,0.00013698,2]
[360982452,1747180238304,-400.0,0.00013698,2]
[360982453,1747180238314,-400.0,0.00013698,2]
[360982454,1747180238324,-400.0,0.00013698,2]
[360982455,1747180238334,-581.11,0.00013698,2]
[360982456,1747180238344,-400.0,0.00013698,2]
[360982457,1747180238353,-400.0,0.00013698,2]
[360982458,1747180238363,-400.0,0.00013698,2]
[360982459,1747180238373,-400.0,0.00013698,2]
[360982460,1747180238382,-470.13,0.00013698,2]
[360982461,1747180238392,-400.0,0.00013698,2]
[360982462,1747180238402,-400.0,0.00013698,2]
[360982463,1747180238412,-400.0,0.00013698,2]
[360982464,1747180238421,-400.0,0.00013698,2]
[360982465,1747180238431,-400.0,0.00013698,2]
[360982466,1747180238441,-400.0,0.00013698,2]
[360982467,1747180238451,-400.0,0.00013698,2]
[360982468,1747180238460,-400.0,0.00013698,2]
[360982469,1747180238471,-501.03,0.00013698,2]
[360982470,1747180238481,-482.4,0.00013698,2]
[360982471,1747180238491,-400.0,0.00013698,2]
[360982472,1747180238500,-416.8,0.00013698,2]
[360982473,1747180238510,-400.0,0.00013698,2]
[360982474,1747180238520,-739.86,0.00013698,2]
[360982475,1747180238530,-1024.9,0.00013698,2]
[360982476,1747180238540,-400.0,0.00013698,2]
[360982477,1747180238553,-933.79,0.00013698,2]
[360982478,1747180238563,-400.0,0.00013698,2]
[360982479,1747180238573,-400.0,0.00013698,2]
[360982480,1747180238583,-400.0,0.00013698,2]
[360982481,1747180238596,-400.0,0.00013698,2]
[360982482,1747180238606,-413.43,0.00013698,2]
[360982483,1747180238616,-400.0,0.00013698,2]
[360982484,1747180238628,-400.0,0.00013698,2]
[360982485,1747180238639,-400.0,0.00013698,2]
[360982486,1747180238649,-400.0,0.00013698,2]
[360982487,1747180238658,-581.19,0.00013698,2]
[360982488,1747180238669,-400.0,0.00013698,2]
[360982489,1747180238679,-1001.33,0.00013698,2]
[360982490,1747180238689,-9460.0,0.00013698,2]
[360982491,1747180238699,-400.0,0.00013698,2]
[360982492,1747180238708,-522.34685265,0.00013698,2]
[360982493,1747180238718,-400.0,0.00013698,2]
[360982494,1747180238728,-813.65,0.00013698,2]
[360982495,1747180238737,-400.0,0.00013698,2]
[360982496,1747180238746,-263.38850705,0.00013698,2]
[360982497,1747180238757,-480.79,0.00013698,2]
[360982498,1747180238768,-400.0,0.00013698,2]
[360982499,1747180238777,-1013.86,0.00013698,2]
[360982500,1747180238787,-2043.81,0.00013698,2]
[360982501,1747180238797,-400.0,0.00013698,2]
[360982502,1747180238807,-400.0,0.00013698,2]
[360982503,1747180238816,-400.0,0.00013698,2]
[360982504,1747180238826,-400.0,0.00013698,2]
[360982505,1747180238838,-400.0,0.00013698,2]
[360982506,1747180238848,-400.0,0.00013698,2]
[360982507,1747180238858,-400.0,0.00013698,2]
[360982508,1747180238869,-867.47,0.00013698,2]
[360982509,1747180238880,-400.0,0.00013698,2]
[360982510,1747180238890,-657.76,0.00013698,2]
[360982511,1747180238900,-482.89,0.00013698,2]
[360982512,1747180238910,-400.0,0.00013698,2]
[360982513,1747180238919,-2278.19,0.00013698,2]
[360982514,1747180238929,-385.3440467,0.00013698,2]
[360982515,1747180238938,-400.0,0.00013698,2]
[360982516,1747180238947,-707.64,0.00013698,2]
[360982517,1747180238957,-400.0,0.00013698,2]
[360982518,1747180238966,-254.82888329,0.00013698,2]
[360982519,1747180238976,-491.54,0.00013698,2]
[360982520,1747180238985,-1958.2,0.00013698,2]
[360982521,1747180238994,-400.0,0.00013698,2]
[360982522,1747180239004,-585.96,0.00013698,2]
[360982523,1747180239013,-400.0,0.00013698,2]
[360982524,1747180239022,-400.0,0.00013698,2]
[360982525,1747180239032,-400.0,0.00013698,2]
[360982526,1747180239041,-400.0,0.00013698,2]
[360982527,1747180239051,-523.19,0.00013698,2]
[360982528,1747180239060,-400.0,0.00013698,2]
[360982529,1747180239071,-513.51509552,0.00013698,2]
[360982530,1747180239081,-400.0,0.00013698,2]
[360982531,1747180239091,-708.88,0.00013698,2]
[360982532,1747180239100,-400.0,0.00013698,2]
[360982533,1747180239110,-217.46572976,0.00013698,2]
[360982534,1747180239121,-400.0,0.00013698,2]
[360982535,1747180239130,-1421.69,0.00013698,2]
[360982536,1747180239139,-400.0,0.00013698,2]
[360982537,1747180239148,-175.16712161,0.00013698,2]
[360982538,1747180239157,-400.0,0.00013698,2]
[360982539,1747180239167,-400.0,0.00013698,2]
[360982540,1747180239176,-400.0,0.00013698,2]
[360982541,1747180239186,-400.0,0.00013698,2]
[360982542,1747180239195,-2865.84,0.00013698,2]
[360982543,1747180239205,-400.0,0.00013698,2]
[360982544,1747180239214,-400.0,0.00013698,2]
[360982545,1747180239223,-1025.55,0.00013698,2]
[360982546,1747180239234,-400.0,0.00013698,2]
[360982547,1747180239244,-407.10330426,0.00013698,2]
[360982548,1747180239253,-1207.57,0.00013698,2]
[360982549,1747180239263,-400.0,0.00013698,2]
[360982550,1747180239273,-400.0,0.00013698,2]
[360982551,1747180239283,-400.0,0.00013698,2]
[360982552,1747180239295,-400.0,0.00013698,2]
[360982553,1747180239305,-400.0,0.00013698,2]
[360982554,1747180239315,-400.0,0.00013698,2]
[360982555,1747180239324,-400.0,0.00013698,2]
[360982556,1747180239335,-1379.8,0.00013698,2]
[360982557,1747180239345,-431.45,0.00013698,2]
[360982558,1747180239355,-675.55,0.00013698,2]
[360982559,1747180239364,-521.28,0.00013698,2]
[360982560,1747180239374,-406.66,0.00013698,2]
[360982561,1747180239384,-400.0,0.00013698,2]
[360982562,1747180239393,-400.0,0.00013698,2]
[360982563,1747180239403,-400.0,0.00013698,2]
[360982564,1747180239412,-1058.22,0.00013698,2]
[360982565,1747180239422,-608.17,0.00013698,2]
[360982566,1747180239431,-400.0,0.00013698,2]
[360982567,1747180239442,-281.09936173,0.00013698,2]
[360982568,1747180239451,-1273.84,0.00013698,2]
[360982569,1747180239461,-1655.89,0.00013698,2]
[360982570,1747180239470,-1201.63,0.00013698,2]
[360982571,1747180239479,-400.0,0.00013698,2]
[360982572,1747180239495,-804.49,0.00013698,2]
[360982573,1747180239505,-400.0,0.00013698,2]
[360982574,1747180239514,-400.0,0.00013698,2]
[360982575,1747180239524,-239.49083137,0.00013698,2]
[360982576,1747180239662,-369.84916863,0.00013698,2]
[360982577,1747180239673,-453.69582837,0.00013698,2]
[360982578,1747180239686,-13.90417163,0.00013698,2]
[360982579,1747180239696,-3977.04269909,0.00013698,2]
[360982580,1747180239707,-397.89386563,0.00013698,2]
[360982581,1747180239720,-322.03343528,0.00013698,2]
[360982582,1747180239731,-400.0,0.00013698,2]
[360982583,1747180239741,-400.0,0.00013698,2]
[360982584,1747180239751,-400.0,0.00013698,2]
[360982585,1747180239761,-445.3,0.00013698,2]
[360982586,1747180239771,-1626.6519906,0.00013698,2]
[360982587,1747180239783,-38.7280094,0.00013698,2]
[360982588,1747180239793,-400.0,0.00013698,2]
[360982589,1747180239803,-400.0,0.00013698,2]
[360982590,1747180239813,-787.48,0.00013698,2]
[360982591,1747180239822,-400.0,0.00013698,2]
[360982592,1747180239832,-400.0,0.00013698,2]
[360982593,1747180239845,-400.0,0.00013698,2]
[360982594,1747180239867,-400.0,0.00013698,2]
[360982595,1747180239882,-343.07234468,0.00013698,2]
[360982596,1747180239893,-400.0,0.00013698,2]